Workbook

Sheet P&L
A1: AGILENT TECHNOLOGIES, INC.
A2: CONDENSED CONSOLIDATED STATEMENT OF OPERATIONS
A3: (In millions, except per share data)
A4: (Unaudited)
A5: PRELIMINARY
B8: Three Months Ended | F8: Nine Months Ended
B9: July 31, | F9: July 31,
B10: 2025 | D10: 2024 | F10: 2025 | H10: 2024
A12: Net revenue | B12: $1,738 | D12: $1,578 | F12: $5,087 | H12: $4,809
A14: Costs and expenses:
A15: Cost of products and services | B15: 850 | D15: 723 | F15: 2,434 | H15: 2,190
A16: Research and development | B16: 111 | D16: 127 | F16: 336 | H16: 368
A17: Selling, general and administrative | B17: 417 | D17: 395 | F17: 1,281 | H17: 1,171
A18: Total costs and expenses | B18: =SUM(B15:B17) -> 1,378 | D18: =SUM(D15:D17) -> 1,245 | F18: =SUM(F15:F17) -> 4,051 | H18: =SUM(H15:H17) -> 3,729
A20: Income from operations | B20: =B12-B18 -> 360 | D20: =D12-D18 -> 333 | F20: =F12-F18 -> 1,036 | H20: =H12-H18 -> 1,080
A22: Interest income | B22: 16 | D22: 19 | F22: 45 | H22: 56
A23: Interest expense | B23: (28) | D23: (22) | F23: (85) | H23: (64)
A24: Other income (expense), net | B24: 18 | D24: 13 | F24: (3) | H24: 48
A26: Income before taxes | B26: =SUM(B20:B24) -> 366 | D26: =SUM(D20:D24) -> 343 | F26: =SUM(F20:F24) -> 993 | H26: =SUM(H20:H24) -> 1,120
A28: Provision for income taxes | B28: 30 | D28: 61 | F28: 124 | H28: 182
A30: Net income | B30: =B26-B28 -> $336 | D30: =D26-D28 -> $282 | F30: =F26-F28 -> $869 | H30: =H26-H28 -> $938
A34: Net income per share:
A35: Basic | B35: =B30/B39 -> $1.18 | D35: =D30/D39 -> $0.97 | F35: =F30/F39 -> $3.05 | H35: =H30/H39 -> $3.21
A36: Diluted | B36: =B30/B40 -> $1.18 | D36: =D30/D40 -> $0.97 | F36: =F30/F40 -> $3.05 | H36: =H30/H40 -> $3.20
A38: Weighted average shares used in computing net income per share:
A39: Basic | B39: 284 | D39: 290 | F39: 285 | H39: 292
A40: Diluted | B40: 285 | D40: 291 | F40: 285 | H40: 293
A48: The preliminary income statement is estimated based on our current information.
A51: Page 1

Sheet Balance Sheet
A1: AGILENT TECHNOLOGIES, INC.
A2: CONDENSED CONSOLIDATED BALANCE SHEET
A3: (In millions, except par value and share data)
A4: (Unaudited)
A5: PRELIMINARY
E8: July 31, | G8: October 31,
E9: 2025 | G9: 2024
A10: ASSETS
A12: Current assets:
B13: Cash and cash equivalents | E13: $1,535 | G13: $1,329
B14: Short-term investments
B15: Accounts receivable, net | E15: 1,382 | G15: 1,324
B16: Inventory | E16: 1,014 | G16: 972
B17: Other current assets | E17: 322 | G17: 334
C18: Total current assets | E18: =SUM(E13:E17) -> 4,253 | G18: =SUM(G13:G17) -> 3,959
A20: Property, plant and equipment, net | E20: 1,966 | G20: 1,778
A21: Goodwill | E21: 4,475 | G21: 4,477
A22: Other intangible assets, net | E22: 469 | G22: 547
A23: Long-term investments | E23: 133 | G23: 175
A24: Other assets | E24: 930 | G24: 910
C25: Total assets | E25: =SUM(E18:E24) -> $12,226 | G25: =SUM(G18:G24) -> $11,846
A27: LIABILITIES AND EQUITY
A29: Current liabilities:
B30: Accounts payable | E30: $530 | G30: $540
B31: Employee compensation and benefits | E31: 346 | G31: 368
B32: Deferred revenue | E32: 620 | G32: 544
B33: Short-term debt | E33: 59 | G33: 45
B34: Other accrued liabilities | E34: 337 | G34: 398
C35: Total current liabilities | E35: =SUM(E30:E34) -> 1,892 | G35: =SUM(G30:G34) -> 1,895
A37: Long-term debt | E37: 3,350 | G37: 3,345
A38: Retirement and post-retirement benefits | E38: 119 | G38: 130
A39: Other long-term liabilities | E39: 495 | G39: 578
C40: Total liabilities | E40: =SUM(E35:E39) -> 5,856 | G40: =SUM(G35:G39) -> 5,948
A42: Total Equity:
B43: Stockholders' equity:
B44: Preferred stock; $0.01 par value; 125,000,000 shares authorized; none issued and outstanding | E44: — | G44: —
B45: Common stock; $0.01 par value, 2,000,000,000 shares authorized; 283,593,838 shares
C46: at July 31, 2025 and 285,193,011 shares at October 31, 2024, issued and outstanding | E46: 3 | G46: 3
B47: Additional paid-in-capital | E47: 5,548 | G47: 5,450
B48: Retained earnings | E48: 1,102 | G48: 750
B49: Accumulated other comprehensive loss | E49: (283) | G49: (305)
C50: Total stockholders' equity | E50: =SUM(E45:E49) -> 6,370 | G50: =SUM(G45:G49) -> 5,898
D51: Total liabilities and stockholders' equity | E51: =E40+E50 -> $12,226 | G51: =G40+G50 -> $11,846
A54: The preliminary balance sheet is estimated based on our current information.
A58: Page 2

Sheet Cash Flow
A1: AGILENT TECHNOLOGIES, INC.
A2: CONDENSED CONSOLIDATED STATEMENT OF CASH FLOWS
A3: (In millions)
A4: (Unaudited)
A5: PRELIMINARY
F8: Nine Months Ended
F9: July 31, | H9: =F9 -> July 31,
F10: 2025 | H10: 2024
A11: Cash flows from operating activities:
B12: Net income | F12: $869 | H12: $938
A14: Adjustments to reconcile net income to net cash provided by operating activities:
B15: Depreciation and amortization | F15: 217 | H15: 188
B16: Share-based compensation | F16: 102 | H16: 103
B17: Deferred taxes expense (benefit) | F17: (35) | H17: (8)
B18: Excess and obsolete inventory related charges | F18: 30 | H18: 33
B19: Net (gain) loss on equity securities | F19: 28 | H19: (6)
B20: Asset impairment charges | F20: 15 | H20: 8
B21: Other non-cash (income) expense, net | F21: 4 | H21: 2
B22: Changes in assets and liabilities:
C23: Accounts receivable, net | F23: (44) | H23: 67
C24: Inventory | F24: (72) | H24: 15
C25: Accounts payable | F25: (13) | H25: 78
C26: Employee compensation and benefits | F26: (26) | H26: (65)
C27: Other assets and liabilities | F27: (61) | H27: (83)
A28: Net cash provided by operating activities (a) | F28: =SUM(F12:F27) -> 1,014 | H28: =SUM(H12:H27) -> 1,270
A30: Cash flows from investing activities:
B31: Payments to acquire property, plant and equipment | F31: (314) | H31: (285)
B32: Proceeds from sale of equity securities | F32: 5 | H32: —
B33: Payments to acquire equity securities | F33: — | H33: (5)
B34: Proceeds from convertible note | F34: 2 | H34: —
B35: Payments in exchange for convertible note | F35: (1) | H35: (11)
B36: Payments to acquire businesses and intangible assets, net of cash acquired | F36: 4 | H36: (3)
A37: Net cash used in investing activities | F37: =SUM(F31:F36) -> (304) | H37: =SUM(H31:H36) -> (304)
A39: Cash flows from financing activities:
B40: Proceeds from issuance of common stock under employee stock plans | F40: 60 | H40: 76
B41: Payment of taxes related to net share settlement of equity awards | F41: (28) | H41: (27)
B42: Payments for repurchase of common stock | F42: (340) | H42: (815)
B43: Payment of excise taxes related to repurchases of common stock | F43: (10) | H43: —
B44: Payments of dividends | F44: (212) | H44: (206)
B45: Proceeds from issuance of long-term debt | F45: 4 | H45: —
B46: Repayments of long-term debt | F46: (2) | H46: (180)
B47: Net proceeds from (repayment of) short-term debt | F47: 13 | H47: 375
A48: Net cash used in financing activities | F48: =SUM(F38:F47) -> (515) | H48: =SUM(H38:H47) -> (777)
A50: Effect of exchange rate movements | F50: 10 | H50: —
A52: Net increase (decrease) in cash, cash equivalents and restricted cash | F52: =F28+F37+F48+F50 -> 205 | H52: =H28+H37+H48 -> 189
A54: Cash, cash equivalents and restricted cash at beginning of period | F54: 1,332 | H54: 1,593
A56: Cash, cash equivalents and restricted cash at end of period | F56: =SUM(F52:F54) -> $1,537 | H56: =SUM(H52:H54) -> $1,782
A59: Reconciliation of cash, cash equivalents and restricted cash to the condensed consolidated balance sheet:
B61: Cash and cash equivalents | F61: $1,535 | H61: $1,779
B62: Restricted cash, included in other assets | F62: 2 | H62: 3
B63: Total cash, cash equivalents and restricted cash | F63: =SUM(F61:F62) -> $1,537 | H63: =SUM(H61:H62) -> $1,782
A66: (a) Cash payments included in operating activities:
B68: Income tax payments, net of refunds received | F68: $304 | H68: $284
B69: Interest payments, net of capitalized interest | F69: $55 | H69: $50
A73: The preliminary cash flow is estimated based on our current information.
A76: Page 3

Sheet Net Income & EPS Non-GAAP
A1: AGILENT TECHNOLOGIES, INC.
A2: NON-GAAP NET INCOME AND DILUTED EPS RECONCILIATIONS
A3: (In millions, except per share data)
A4: (Unaudited)
A5: PRELIMINARY
E7: Three Months Ended | K7: Nine Months Ended
E8: July 31, | K8: July 31,
E9: 2025 | H9: 2024 | K9: 2025 | N9: 2024
E10: Net Income | F10: Diluted EPS | H10: Net Income | I10: Diluted EPS | K10: Net Income | L10: Diluted EPS | N10: Net Income | O10: Diluted EPS
A12: GAAP net income | E12: $336 | F12: $1.18 | H12: $282 | I12: $0.97 | K12: $869 | L12: $3.05 | N12: $938 | O12: $3.20
B13: Non-GAAP adjustments:
C14: Restructuring and other related costs | E14: 17 | F14: 0.06 | H14: 67 | I14: 0.23 | K14: 74 | L14: 0.26 | N14: 71 | O14: 0.24
C15: Asset impairments | E15: — | F15: — | H15: — | I15: — | K15: 15 | L15: 0.05 | N15: 8 | O15: 0.03
C16: Intangible amortization | E16: 26 | F16: 0.09 | H16: 25 | I16: 0.09 | K16: 81 | L16: 0.28 | N16: 77 | O16: 0.26
C17: Transformational initiatives | E17: 18 | F17: 0.06 | H17: 1 | I17: — | K17: 48 | L17: 0.17 | N17: 5 | O17: 0.02
C18: Acquisition and integration costs | E18: 3 | F18: 0.01 | H18: 4 | I18: 0.01 | K18: 15 | L18: 0.05 | N18: 5 | O18: 0.02
C19: Net (gain) loss on equity securities | E19: 1 | F19: — | H19: (1) | I19: — | K19: 28 | L19: 0.10 | N19: (2) | O19: (0.01)
C20: Pension settlement loss | E20: — | F20: — | H20: — | I20: — | K20: 14 | L20: 0.05 | N20: — | O20: —
C21: Other | E21: 12 | F21: 0.05 | H21: 3 | I21: 0.01 | K21: 27 | L21: 0.09 | N21: 4 | O21: 0.01
C22: Adjustment for taxes (a) | E22: (23) | F22: (0.08) | H22: 4 | I22: 0.01 | K22: (31) | L22: (0.10) | N22: 15 | O22: 0.06
A23: Non-GAAP net income | E23: =SUM(E12:E22) -> $390 | F23: =SUM(F12:F22) -> $1.37 | H23: =SUM(H12:H22) -> $385 | I23: =SUM(I12:I22) -> $1.32 | K23: =SUM(K12:K22) -> $1,140 | L23: =SUM(L12:L22) -> $4.00 | N23: =SUM(N12:N22) -> $1,121 | O23: =SUM(O12:O22) -> $3.83
A26: (a) The adjustment for taxes excludes tax expense (benefits) that management believes are not directly related to on-going operations and which are either isolated, temporary or cannot be expected to occur again with any regularity or predictability such as the realized gain/loss due to sale of a business, windfall benefits on stock compensation, and the impact of R&D capitalization under section 174 of the Tax Cuts and Jobs Act of 2017. During the three months ended July 31, 2025, tax reserves were released, which resulted in a tax benefit for GAAP purposes. This tax benefit is excluded from our non-GAAP results since it is not related to on-going business operations. For the three and nine months ended July 31 2025, management used a non-GAAP effective tax rate of 12.00%. For the three and nine months ended July 31, 2024, management used a non-GAAP effective tax rate of 13.00%.
A27: We provide non-GAAP net income and non-GAAP net income per share amounts in order to provide meaningful supplemental information regarding our operational performance and our prospects for the future. These supplemental measures exclude, among other things, charges related to restructuring and other related costs, asset impairments, amortization of intangibles, transformational initiatives, acquisition and integration costs, net (gain) loss on equity securities and pension settlement loss.
B28: Restructuring and other related costs include incremental expenses incurred in the period associated with restructuring programs, usually aimed at changes in business and/or cost structure. Such costs may include one-time termination benefits including acceleration of stock-based compensation expense, facility-related costs and contract termination fees.
B29: Asset impairments include assets that have been written down to their fair value.
B30: Transformational initiatives include expenses associated with targeted cost reduction activities such as manufacturing transfers including costs to move manufacturing, site consolidations, legal entity and other business reorganizations, insourcing or outsourcing of activities. Such costs may include move and relocation costs, one-time termination benefits and other one-time reorganization costs. Included in this category are also expenses associated with the Ignite transformation and company programs to transform our product lifecycle management (PLM) system and human resources and financial systems.
B31: Acquisition and integration costs include all incremental expenses incurred to effect a business combination. Such acquisition costs may include advisory, legal, tax, accounting, valuation, and other professional or consulting fees. Such integration costs may include expenses directly related to integration of business and facility operations, the transfer of assets and intellectual property, information technology systems and infrastructure and other employee-related costs.
B32: Business exit and divestiture costs (gain) include costs and gain associated with business divestitures.
B33: Net (gain) loss on equity securities relates to the realized and unrealized mark-to-market adjustments for our marketable and non-marketable equity securities.
B34: Pension settlement loss resulted from the transfer of the Netherlands defined benefit plan to an unaffiliated insurance company.
B35: Change in fair value of contingent consideration represents changes in the fair value estimate of acquisition-related contingent consideration.
B36: Other includes certain legal costs and settlements, consulting costs, special compliance costs, acceleration of stock-based compensation expense, impact of the difference between current and inflated tariff rates between USA and China for the first two weeks of May 2025 and other miscellaneous adjustments.
B37: Tax benefit on intra-entity asset transfer relates to our operations in Singapore along with our application of the new accounting rules for income tax consequences of intra-entity transfer of assets as adopted on November 1, 2018.
A39: Our management uses non-GAAP measures to evaluate the performance of our core businesses, to estimate future core performance and to compensate employees. Since management finds this measure to be useful, we believe that our investors benefit from seeing our results “through the eyes” of management in addition to seeing our GAAP results. This information facilitates our management’s internal comparisons to our historical operating results as well as to the operating results of our competitors.
A41: Our management recognizes that items such as amortization of intangibles can have a material impact on our cash flows and/or our net income. Our GAAP financial statements including our statement of cash flows portray those effects. Although we believe it is useful for investors to see core performance free of special items, investors should understand that the excluded items are actual expenses that may impact the cash available to us for other uses. To gain a complete picture of all effects on the company’s profit and loss from any and all events, management does (and investors should) rely upon the GAAP income statement. The non-GAAP numbers focus instead upon the core business of the company, which is only a subset, albeit a critical one, of the company’s performance.
A43: Readers are reminded that non-GAAP numbers are merely a supplement to, and not a replacement for, GAAP financial measures. They should be read in conjunction with the GAAP financial measures. It should be noted as well that our non-GAAP information may be different from the non-GAAP information provided by other companies.
A45: The preliminary non-GAAP net income and diluted EPS reconciliation is estimated based on our current information.
A48: Page 4

Sheet Segment Results
A1: AGILENT TECHNOLOGIES, INC.
A2: SEGMENT INFORMATION
A3: (In millions, except where noted)
A4: (Unaudited)
A5: PRELIMINARY
A8: Quarter-over-Quarter
A10: Life Sciences and Diagnostics Markets Segment
C11: Q3'25 | E11: Q3'24
A12: Revenue | C12: $670 | E12: $585
A13: Gross Margin, % | C13: 50.5% | E13: 54.4%
A14: Income from Operations | C14: $118 | E14: $114
A15: Operating margin, % | C15: 17.6% | E15: 19.6%
A18: Agilent CrossLab Segment
C19: =C11 -> Q3'25 | E19: =E11 -> Q3'24
A20: Revenue | C20: $744 | E20: $691
A21: Gross Margin, % | C21: 55.1% | E21: 57.7%
A22: Income from Operations | C22: $248 | E22: $248
A23: Operating margin, % | C23: 33.3% | E23: 35.9%
A26: Applied Markets Segment
C27: =C11 -> Q3'25 | E27: =E11 -> Q3'24
A28: Revenue | C28: $324 | E28: $302
A29: Gross Margin, % | C29: 53.6% | E29: 55.2%
A30: Income from Operations | C30: $71 | E30: $70
A31: Operating margin, % | C31: 21.8% | E31: 23.2%
A34: Year-over-Year
A36: Life Sciences and Diagnostics Markets Group (LDG)
C37: FY25 | E37: FY24
A38: Revenue
A39: Gross Margin, %
A40: Income from Operations
A41: Operating margin, %
A44: Agilent CrossLab Group (ACG)
C45: =C37 -> FY25 | E45: =E37 -> FY24
A46: Revenue
A47: Gross Margin, %
A48: Income from Operations
A49: Operating margin, %
A52: Applied Markets Group (AMG)
C53: =C37 -> FY25 | E53: =E37 -> FY24
A54: Revenue
A55: Gross Margin, %
A56: Income from Operations
A57: Operating margin, %
A61: Income from operations reflect the results of our reportable segments under Agilent's management reporting system which are not necessarily in conformity with GAAP financial measures. Income from operations of our reporting segments exclude, among other things, charges related to restructuring and other related costs, amortization of intangibles, transformational initiatives and acquisition and integration costs.
A63: Readers are reminded that non-GAAP numbers are merely a supplement to, and not a replacement for, GAAP financial measures. They should be read in conjunction with the GAAP financial measures. It should be noted as well that our non-GAAP information may be different from the non-GAAP information provided by other companies.
A65: The preliminary segment information is estimated based on our current information.
A68: Page 5

Sheet Core Revenue by Segment (QTD)
A1: AGILENT TECHNOLOGIES, INC.
A2: RECONCILIATIONS OF REVENUE BY SEGMENT
A3: EXCLUDING ACQUISITIONS, DIVESTITURES AND THE IMPACT OF CURRENCY ADJUSTMENTS (CORE)
A4: (In millions)
A5: (Unaudited)
A6: PRELIMINARY
B8: Year-over-Year
B10: GAAP
D11: Year-over-Year
A12: GAAP Revenue by Segment | B12: Q3'25 | C12: Q3'24 | D12: % Change
A14: Life Sciences and Diagnostics Markets Segment | B14: $670 | C14: $585 | D14: 14%
A15: Agilent CrossLab Segment | B15: 744 | C15: 691 | D15: 8%
A16: Applied Markets Segment | B16: 324 | C16: 302 | D16: 7%
A17: Agilent | B17: =SUM(B14:B16) -> $1,738 | C17: =SUM(C14:C16) -> $1,578 | D17: 10%
B22: Non-GAAP (excluding Acquisitions & Divestitures) | F22: Year-over-Year at Constant Currency (a)
D23: Year-over-Year | F23: Year-over-Year | G23: Percentage Point Impact from Currency | I23: Current Quarter Currency Impact (b)
A24: Non GAAP Revenue by Segment | B24: =B12 -> Q3'25 | C24: =C12 -> Q3'24 | D24: % Change | F24: % Change
A26: Life Sciences and Diagnostics Markets Segment | B26: $641 | C26: $585 | D26: 9% | F26: 7% | G26: 2 ppts | I26: $13
A27: Agilent CrossLab Segment | B27: 744 | C27: 691 | D27: 8% | F27: 5% | G27: 3 ppts | I27: 16
A28: Applied Markets Segment | B28: 324 | C28: 302 | D28: 7% | F28: 5% | G28: 2 ppts | I28: 6
A29: Agilent (Core) | B29: =SUM(B26:B28) -> $1,709 | C29: =SUM(C26:C28) -> $1,578 | D29: 8% | F29: 6% | G29: 2 ppts | I29: =SUM(I26:I28) -> $35
A33: We compare the year-over-year change in revenue excluding the effect of recent acquisitions and divestitures and foreign currency rate fluctuations to assess the performance of our underlying business.
A35: (a) The constant currency year-over-year growth percentage is calculated by recalculating all periods in the comparison period at the foreign currency exchange rates used for accounting during the last month of the current quarter and then using those revised values to calculate the year-over-year percentage change.
A37: (b) The dollar impact from the current quarter currency impact is equal to the total year-over-year dollar change less the constant currency year-over-year change.
A39: The preliminary reconciliation of GAAP revenue adjusted for recent acquisitions and divestitures and impact of currency is estimated based on our current information.
A45: Page 6

Sheet Core Revenue by Segment (YTD) (hidden)
A1: AGILENT TECHNOLOGIES, INC.
A2: RECONCILIATIONS OF REVENUE BY SEGMENT
A3: EXCLUDING ACQUISITIONS, DIVESTITURES AND THE IMPACT OF CURRENCY ADJUSTMENTS (CORE)
A4: (in millions)
A5: (Unaudited)
A6: PRELIMINARY
B8: Year-over-Year
B10: GAAP
D11: Year-over-Year
A12: GAAP Revenue by Segment | B12: FY25 | C12: FY24 | D12: % Change
A14: Life Sciences and Diagnostics Markets Group
A15: Agilent CrossLab Group
A16: Applied Markets Group
A17: Agilent | B17: =SUM(B14:B16) -> 0 | C17: =SUM(C14:C16) -> 0
B22: Non-GAAP (excluding Acquisitions & Divestitures) | F22: Year-over-Year at Constant Currency (a)
D23: Year-over-Year | F23: Year-over-Year | G23: Percentage Point Impact from Currency | I23: Current Quarter Currency Impact (b)
A24: Non GAAP Revenue by Segment | B24: =B12 -> FY25 | C24: =C12 -> FY24 | D24: % Change | F24: % Change
A26: Life Sciences and Diagnostics Markets Group
A27: Agilent CrossLab Group
A28: Applied Markets Group
A29: Agilent (Core) | B29: =SUM(B26:B28) -> 0 | C29: =SUM(C26:C28) -> 0 | I29: =SUM(I26:I28) -> 0
A33: We compare the year-over-year change in revenue excluding the effect of recent acquisitions and divestitures and foreign currency rate fluctuations to assess the performance of our underlying business.
A35: (a) The constant currency year-over-year growth percentage is calculated by recalculating all periods in the comparison period at the foreign currency exchange rates used for accounting during the last month of the current quarter and then using those revised values to calculate the year-over-year percentage change.
A37: (b) The dollar impact from the current year currency impact is equal to the total year-over-year dollar change less the constant currency year-over-year change.
A39: The preliminary reconciliation of GAAP revenue adjusted for recent acquisitions and divestitures and impact of currency is estimated based on our current information.
A45: Page 7
